Workbook

Sheet 2020
A1: DISTRICT 26 AFG INCOME | B1: JAN | C1: FEB | D1: MAR | E1: APR | F1: MAY | G1: JUNE | H1: JULY | I1: AUG | J1: SEP | K1: OCT | L1: NOV | M1: DEC | N1: YTD | O1: BUDGET
A2: Previous Balance | B2: $2,969.06 | C2: $2,994.05 | D2: $2,817.67 | E2: $2,532.67 | F2: $3,007.54 | G2: $3,007.54 | H2: $3,213.54 | I2: $3,487.55 | J2: $3,287.55 | K2: $3,287.55 | L2: $3,341.71 | M2: $3,430.71
A3: Carry over from 2019
A5: Group Donations
A6: Sun/SpiritAwaken Man #062036
A7: Sun Morning B.I. #049016 | E7: $100.00 | K7: $65.00 | N7: $165.00
A8: Mon Brem Noon #30517382
A9: Mon Nite Seren B.I. #053810 | D9: $135.00 | N9: $135.00
A10: Haven of Hope Belfair #041641 | D10: $50.00 | G10: $200.00 | N10: $275.00
A11: TGI Mon PT O #038244 | N11: $0.00
A12: Silverdale Tue Noon #046864 | C12: 30.00 | E12: $30.00 | H12: $30.00 | L12: $30.00 | N12: $120.00
A13: Back2Baasics Poulsbo #0502578 | B13: $83.19 | E13: $107.87 | L13: $63.00 | N13: $254.06
A14: E Brem Thurs Noon #062033 | N14: $0.00
A15: Trust the Process Brem #0503174 | N15: $0.00
A16: Study Group Poulsbo #30510316 | K16: $87.50 | N16: $87.50
A17: Fri Noon B.I. #065350 | G17: $50.00 | L17: $100.00 | N17: $150.00
A18: Steps to Serenity #30631718
A19: VOH Speakers #30522687 | E19: $37.00 | N19: $37.00
A20: Let it Begin Poulsbo #30612713
A21: Seeds of Hope #30618593 | G21: $156.00 | N21: $156.00
A22: TOTAL GROUP DONATIONS | O22: 2,000.00 | P22: 3000
R23: Catz notes
A24: DistSp: Fundraisers-Workshops | H24: $461.60 | N24: $461.64 | R24: Income
A25: Alateen - Rock Solid 30683970 | R25: 1854.56
A26: Alateen - Clear Choices 30648049
A27: Lit.Dist. Center Belfair #2167396 | E27: $200.00 | L27: $25.00 | N27: $200.00
A28: Individual Contributions | H28: $75.00 | M28: $200.00 | N28: $275.00
A30: TOTAL INCOME - MONTLY | B30: $83.19 | C30: 30.00 | D30: 185 | E30: 474.87 | G30: 406.00 | H30: 566.64 | I30: 0 | J30: 0 | K30: 152.50 | L30: 218.00 | M30: 200.00 | N30: $2,316.20 | O30: 2,000.00
A33: DISTRICT 26 EXPENSES | B33: JAN | C33: FEB | D33: MAR | E33: APR | F33: MAY | G33: JUNE | H33: JULY | I33: AUG | J33: SEPT | K33: OCT | L33: NOV | M33: DEC | N33: YTD | O33: 2020 BUDGET | P33: 2021 Budget
A35: Rent/District Meeting | M35: $111.72 | N35: 111.72 | O35: $150.00 | P35: $150.00
A36: DR Exp Travel Registration | C36: $48.00 | H36: $219.00 | N36: 267.00 | O36: $750.00 | P36: 325.00
A37: Public Outreach/Institutions | B37: $58.20 | C37: $58.38 | H37: $73.63 | K37: $98.34 | M37: $17.25 | N37: 305.80 | O37: $800.00 | P37: $800.00
A38: Archives | O38: $0.00 | P38: 0.00
A39: Alateen Co-ordinator | O39: $500.00 | P39: 325.00
A40: Donations to WA Area | G40: $100.00 | I40: $100.00 | N40: 200.00 | O40: $100.00 | P40: 100.00
A41: Donations to WSO | G41: $100.00 | I41: $100.00 | N41: 200.00 | O41: $100.00 | P41: 100.00
A42: Website | M42: $156.96 | N42: 156.96 | O42: $200.00 | P42: 220.00
A43: Misc.Copies,Stamps PO Box | L43: $129.00 | N43: 129.00 | O43: $250.00 | P43: $150.00
A44: Service Manuals (NEW?) | Q44: Service Manual
A45: GR Groups & Svc Manuals | O45: $1,000.00 | P45: 325.00 | Q45: Scholarship
A46: Dist Spsrd/ Workshops | C46: $100.00 | D46: $470.00 | N46: 570.00 | O46: $1,000.00 | P46: 100.00 | Q46: Workshops Only
A47: Year End Donation WA Area
A48: Year End Donation WSO
A49: PRUDENT RESERVE | O49: $1,000.00
A50: TOTAL EXPENSES-MONTHLY | B50: $58.20 | C50: $206.38 | D50: $470.00 | G50: $200.00 | H50: $292.63 | I50: $200.00 | K50: $98.34 | L50: $129.00 | M50: $128.97 | N50: $1,783.52 | P50: =SUM(P34:P49) -> 2,595.00
O51: $4,850.00
A52: CURRENT BALANCE | B52: $2,994.05 | C52: $2,817.67 | D52: $2,532.67 | E52: $3,007.54 | F52: $3,007.54 | G52: $3,213.54 | H52: $3,487.55 | I52: $3,287.55 | J52: $3,287.55 | K52: $3,341.71 | L52: $3,430.71 | M52: $3,501.74 | N52: $3,501.74
M56: Catz Notes | N56: $1,783.52
N57: $460.00 | O57: funky reimbursement
N58: =N56-N57 -> $1,323.52 | O58: acutal expense

Sheet 2021
A3: IMPORTANT NOTE! GREY CELLS ARE AUTOMATIC FORMULAS, DO NOT ENTER DATA. | C3: DISTRICT 26 ALANON BUDGET REPORT - INCOME | M3: YEAR BEGINNING BALANCE
M4: 3501.74
A5: DISTRICT 26 AFG INCOME | B5: JAN | C5: FEB | D5: MAR | E5: APR | F5: MAY | G5: JUNE | H5: JULY | I5: AUG | J5: SEP | K5: OCT | L5: NOV | M5: DEC | N5: YTD | O5: 2021 Budget
N6: =SUM(B6:M6) -> 0
N7: 0
N8: 0
A9: Sun Spirit Awaken Man #062036 | N9: 0
A10: Sun Morning B.I. #049016 | B10: 50.00 | N10: 50.00
A11: Mon Brem Noon #30517382 | N11: 0
A12: Mon Nite Seren B.I. #053810 | N12: 0
A13: Haven of Hope Belfair #041641 | N13: 0
A14: TGI Mon PT O #038244 | N14: 0
A15: Silverdale Tue Noon #046864 | N15: 0
A16: Back2Baasics Poulsbo #0502578 | N16: 0
A17: E Brem Thurs Noon #062033 | N17: 0
A18: Study Group Poulsbo #30510316 | N18: 0
A19: Fri Noon B.I. #065350 | N19: 0
A20: Steps to Serenity #30631718 | N20: 0
A21: VOH Speakers #30522687 | N21: 0
A22: Let it Begin Poulsbo #30612713 | N22: 0
A23: Seeds of Hope #30618593 | N23: 0
A24: TOTAL GROUP DONATIONS | B24: =SUM(B6:B23) -> 50.00 | C24: 0 | D24: 0 | E24: 0 | F24: 0 | G24: 0 | H24: 0 | I24: 0 | J24: 0 | K24: 0 | L24: 0 | M24: 0 | N24: 50.00
N25: 0
N26: 0
A27: DistSp: Fundraisers-Workshops | N27: 0
A28: Alateen - Rock Solid 30683970 | N28: 0
A29: Alateen - Clear Choices 30648049 | C29: 0 | N29: 0
A30: Lit.Dist. Center Belfair #2167396 | N30: 0
A31: Individual Contributions | B31: 55.00 | C31: 0 | N31: 55.00
A32: TOTAL INCOME – MONTHLY | B32: =SUM(B24:B31) -> 105.00 | C32: 0 | D32: 0 | E32: 0 | F32: 0 | G32: 0 | H32: 0 | I32: 0 | J32: 0 | K32: 0 | L32: 0 | M32: 0 | N32: 105.00 | O32: 2,000.00
A34: IMPORTANT NOTE! GREY CELLS ARE AUTOMATIC FORMULAS, DO NOT ENTER DATA. | C34: DISTRICT 26 ALANON BUDGET REPORT - EXPENSES | M34: YEAR BEGINNING BALANCE
M35: 3501.74
A36: DISTRICT 26 AFG EXPENSES | B36: JAN | C36: FEB | D36: MAR | E36: APR | F36: MAY | G36: JUNE | H36: JULY | I36: AUG | J36: SEPT | K36: OCT | L36: NOV | M36: DEC | N36: YTD | O36: 2021 Budget
A37: Rent/District Meeting | N37: =SUM(B37:M37) -> 0 | O37: 150.00
A38: DR Expense/Travel Registration | N38: 0 | O38: 325.00
A39: Public Outreach/Institutions | N39: 0 | O39: 800.00
A40: Archives | N40: 0 | O40: 0
A41: Alateen Coordinator | N41: 0 | O41: 325.00
A42: Website | N42: 0 | O42: 220.00
A43: Misc. Copies,Stamps PO Box | N43: 0 | O43: 150.00
A44: Service Manuals (NEW) | N44: 0
A45: GR Expenses | N45: 0 | O45: 325.00
A46: D26 Workshops | N46: 0 | O46: 100.00
A47: Donations to WA Area | N47: 0 | O47: 100.00
A48: Donations to WSO | N48: 0 | O48: 100.00
A49: Year End Donation WA Area | C49: 0 | N49: 0
A50: Year End Donation WSO | N50: 0
N51: 0
A52: TOTAL EXPENSES-MONTHLY | B52: =SUM(B37:B51) -> 0 | C52: 0 | D52: 0 | E52: 0 | F52: 0 | G52: 0 | H52: 0 | I52: 0 | J52: 0 | K52: 0 | L52: 0 | M52: 0 | N52: 0 | O52: =SUM(O37:O51) -> 2,595.00
A53: Monthly Income (Minus) Expenses | B53: =SUM(B32-B52) -> 105.00 | C53: 0 | D53: 0 | E53: 0 | F53: 0 | G53: 0 | H53: 0 | I53: 0 | J53: 0 | K53: 0 | L53: 0 | M53: 0 | N53: =M35+(N32-N52) -> 3606.74
A54: CURRENT BALANCE | B54: =M35+B53 -> $3,606.74 | C54: =IF((C53<>0),(B54+C53)," ") -> 
A55: PRUDENT RESERVE ($1000) | N55: current balance

Sheet 2022
A3: IMPORTANT NOTE! GREY CELLS ARE AUTOMATIC FORMULAS, DO NOT ENTER DATA. | C3: DISTRICT 26 ALANON BUDGET REPORT - INCOME | M3: YEAR BEGINNING BALANCE
M4: 3501.74
A5: DISTRICT 26 AFG INCOME | B5: JAN | C5: FEB | D5: MAR | E5: APR | F5: MAY | G5: JUNE | H5: JULY | I5: AUG | J5: SEP | K5: OCT | L5: NOV | M5: DEC | N5: YTD | O5: 2021 Budget
N6: =SUM(B6:M6) -> 0
N7: 0
N8: 0
A9: Sun Spirit Awaken Man #062036 | N9: 0
A10: Sun Morning B.I. #049016 | B10: 100.00 | G10: 100.00 | N10: 200.00
A11: Mon Brem Noon #30517382 | N11: 0
A12: Mon Nite Seren B.I. #053810 | N12: 0
A13: Haven of Hope Belfair #041641 | B13: 200.00 | D13: 50.00 | G13: 200.00 | N13: 450.00
A14: TGI Mon PT O #038244 | C14: 0 | N14: 0
A15: Silverdale Tue Noon #046864 | B15: 30.00 | N15: 30.00
A16: Back2Baasics Poulsbo #0502578 | C16: 54.56 | H16: 60.00 | N16: 114.56
A17: E Brem Thurs Noon #062033 | N17: 0
A18: Study Group Poulsbo #30510316 | C18: 54.50 | N18: 54.50
A19: Fri Noon B.I. #065350 | F19: 100.00 | H19: 50.00 | N19: 150.00
A20: Steps to Serenity #30631718 | N20: 0
A21: VOH Speakers #30522687 | N21: 0
A22: Let it Begin Poulsbo #30612713 | N22: 0
A23: Seeds of Hope #30618593 | C23: 180.00 | N23: 180.00
A24: TOTAL GROUP DONATIONS | B24: =SUM(B6:B23) -> 330.00 | C24: 289.06 | D24: 50.00 | E24: 0 | F24: 100.00 | G24: 300.00 | H24: 110.00 | I24: 0 | J24: 0 | K24: 0 | L24: 0 | M24: 0 | N24: 1,179.06
N25: 0
N26: 0
A27: DistSp: Fundraisers-Workshops | N27: 0
A28: Alateen - Rock Solid 30683970 | N28: 0
A29: Alateen - Clear Choices 30648049 | C29: 0 | N29: 0
A30: Lit.Dist. Center Belfair #2167396 | N30: 0
A31: Individual Contributions | B31: 25.00 | C31: 115.00 | D31: 150.00 | N31: 290.00
A32: TOTAL INCOME – MONTHLY | B32: =SUM(B24:B31) -> 355.00 | C32: 404.06 | D32: 200.00 | E32: 0 | F32: 100.00 | G32: 300.00 | H32: 110.00 | I32: 0 | J32: 0 | K32: 0 | L32: 0 | M32: 0 | N32: 1,469.06 | O32: 2,000.00
C34: DISTRICT 26 ALANON BUDGET REPORT - EXPENSES | M34: YEAR BEGINNING BALANCE
M35: 3501.74
A36: DISTRICT 26 AFG EXPENSES | B36: JAN | C36: FEB | D36: MAR | E36: APR | F36: MAY | G36: JUNE | H36: JULY | I36: AUG | J36: SEPT | K36: OCT | L36: NOV | M36: DEC | N36: YTD | O36: 2022 Budget
A37: Rent/District Meeting | B37: 15.96 | C37: 15.96 | D37: 15.96 | E37: 15.96 | F37: 15.96 | G37: 15.96 | H37: 15.96 | N37: =SUM(B37:M37) -> 111.72 | O37: 150.00
A38: DR Expense/Travel Registration | E38: 57.00 | F38: 623.56 | N38: 680.56 | O38: 325.00
A39: Public Outreach/Institutions | G39: 68.59 | H39: 18.50 | N39: 87.09 | O39: 800.00
A40: Archives | N40: 0 | O40: 0
A41: Alateen Coordinator | N41: 0 | O41: 325.00
A42: Website | N42: 0 | O42: 220.00
A43: Misc. Copies,Stamps PO Box | N43: 0 | O43: 150.00
A44: Service Manuals (NEW) | N44: 0
A45: GR Expenses | N45: 0 | O45: 325.00
A46: D26 Workshops | N46: 0 | O46: 100.00
A47: Donations to WA Area | N47: 0 | O47: 100.00
A48: Donations to WSO | N48: 0 | O48: 100.00
A49: Year End Donation WA Area | C49: 0 | N49: 0
A50: Year End Donation WSO | N50: 0
N51: 0
A52: TOTAL EXPENSES-MONTHLY | B52: =SUM(B37:B51) -> 15.96 | C52: 15.96 | D52: 15.96 | E52: 72.96 | F52: 639.52 | G52: 84.55 | H52: 34.46 | I52: 0 | J52: 0 | K52: 0 | L52: 0 | M52: 0 | N52: 879.37 | O52: =SUM(O37:O51) -> 2,595.00
A53: Monthly Income (Minus) Expenses | B53: =SUM(B32-B52) -> 339.04 | C53: 388.10 | D53: 184.04 | E53: (72.96) | F53: (539.52) | G53: 215.45 | H53: 75.54 | I53: 0 | J53: 0 | K53: 0 | L53: 0 | M53: 0 | N53: =M35+(N32-N52) -> 4091.43
A54: CURRENT BALANCE | B54: =M35+B53 -> $3,840.78 | C54: =IF((C53<>0),(B54+C53)," ") -> 4228.88 | D54: 4412.92 | E54: 4339.96 | F54: 3800.44 | G54: 4015.89 | H54: 4091.43
A55: PRUDENT RESERVE ($1000) | N55: current balance

Sheet REVISIONS
A1: Rev. Date | B1: Data or Information | C1: Decription of Change
A2: 2021-01-09 | B2: Trust the Process Brem #0503174 | C2: deleted, no longer
A3: 2021-01-10 | B3: Carry over from 2020
A4: 2021-01-15 | B4: Income/Expenses/Balance | C4: Create formulas for all columns/rows as appropriate
A5: 2021-01-15 | B5: Income/Expense Rows | C5: Insert & hide several columns for future expansion
A6: 2021-01-15 | B6: Split GR & Service Manual Line Items | C6: District decided to make separate (were same line item prior)
A7: 2020-01-26 | B7: Header | C7: Add Header Information
A8: 2021-02-25 | B8: CORRECTED SPELLING ERRORS
A9: 2021-02-25 | B9: Return blanks when monthly=0 | C9: Successful monthly balance formula=IF((C52<>0),(B53+C52)," ") ---C53CELL
A10: 2021-02-25 | B10: FAIL_Formulas | C10: Tried to lock formulas…failed
A11: 2021-02-26 | B11: FAIL_ PASSWORD Protection of formulas & cells | C11: Failed attempt @ PASSWORD Protection of formulas & cells PW: KitsapAlAn0n (note the 0 = zero) NO longer needed…but just in case.
A12: 2022-04-04 | B12: Created new blank for 2022 | C12: New Treasurer required copy of Spreadsheet for District Mtg.
C54: 2021-02-02
